fUST/lending_fUST_20241121
["ID","MTS","AMOUNT","RATE_DAILY","PERIOD"]
[342820707,1732146633063,-151.0,0.0002369,7]
[342820708,1732146633075,-420.0,0.00023746,2]
[342820709,1732146633087,-750.8612004,0.00023864,2]
[342820710,1732146633101,-500.0,0.00023903,2]
[342820711,1732146633113,-10633.094148,0.00023907,2]
[342820712,1732146633124,-151.0,0.00023907,7]
[342820713,1732146633135,-151.0,0.00023907,7]
[342820714,1732146633144,-151.0,0.00023907,7]
[342820715,1732146633155,-151.0,0.00023907,7]
[342820716,1732146633165,-948.690745,0.00023907,7]
[342820717,1732146633177,-948.690745,0.00023907,7]
[342820718,1732146633188,-190.426317,0.00023907,7]
[342820719,1732146633199,-190.426317,0.00023907,7]
[342820720,1732146633210,-151.0,0.00023907,7]
[342820721,1732146633220,-151.0,0.00023907,7]
[342820722,1732146633230,-151.0,0.00023907,7]
[342820723,1732146633241,-151.0,0.00023907,7]
[342820724,1732146633251,-183.50098621,0.00023963,2]
[342820725,1732146633261,-500.0,0.00023963,2]
[342820726,1732146633271,-500.0,0.00023963,2]
[342820727,1732146633282,-234.87426283,0.00023963,2]
[342820728,1732146633292,-500.0,0.00023963,2]
[342820729,1732146633302,-500.0,0.00023963,2]
[342820730,1732146633312,-500.0,0.00023963,2]
[342820731,1732146633323,-500.0,0.00023963,2]
[342820732,1732146633333,-500.0,0.00023963,2]
[342820733,1732146633345,-500.0,0.00023963,2]
[342820734,1732146633361,-500.0,0.00023963,2]
[342820735,1732146633374,-500.0,0.00023963,2]
[342820736,1732146633384,-151.0,0.00023964,7]
[342820737,1732146633394,-151.0,0.00023964,7]
[342820738,1732146633405,-158.65774592,0.00023964,2]
[342820739,1732146633415,-10363.69,0.00023964,2]
[342820740,1732146633426,-151.0,0.00023964,7]
[342820741,1732146633436,-172.96,0.00023964,2]
[342820742,1732146633447,-151.0,0.00023964,7]
[342820743,1732146633458,-948.690745,0.00023964,7]
[342820744,1732146633469,-948.690745,0.00023964,7]
[342820745,1732146633479,-2460.97,0.00023964,2]
[342820746,1732146633489,-190.426317,0.00023964,7]
[342820747,1732146633499,-190.426317,0.00023964,7]
[342820748,1732146633509,-500.0,0.00023964,2]
[342820749,1732146633520,-151.0,0.00023964,7]
[342820750,1732146633530,-151.0,0.00023964,7]
[342820751,1732146633541,-420.0,0.00024033,2]
[342820752,1732146633552,-170.76,0.00024225,3]
[342820753,1732146633562,-512.32,0.00024225,3]
[342820754,1732146633572,-353.72,0.00024228,2]
[342820755,1732146633583,-190.426317,0.00024235,7]
[342820756,1732146633599,-190.426317,0.00024235,7]
[342820757,1732146633611,-190.426317,0.00024235,7]
[342820758,1732146633622,-190.426317,0.00024235,7]
[342820759,1732146633633,-190.426317,0.00024235,7]
[342820760,1732146633768,-190.426317,0.00024235,7]
[342820761,1732146633778,-190.426317,0.00024235,7]
[342820762,1732146633788,-190.426317,0.00024235,7]
[342820763,1732146633797,-190.426317,0.00024235,7]
[342820764,1732146633807,-190.426317,0.00024235,7]
[342820765,1732146633816,-190.426317,0.00024235,7]
[342820766,1732146633825,-190.426317,0.00024235,7]
[342820767,1732146633835,-151.0,0.00024235,7]
[342820768,1732146633845,-151.0,0.00024235,7]
[342820769,1732146633854,-151.0,0.00024235,7]
[342820770,1732146633863,-151.0,0.00024235,7]
[342820771,1732146633872,-151.0,0.00024235,7]
[342820772,1732146633882,-151.0,0.00024235,7]
[342820773,1732146633891,-171.99888,0.00024235,7]
[342820774,1732146633901,-151.0,0.00024236,7]
[342820775,1732146633911,-151.0,0.00024236,7]
[342820776,1732146633920,-231.702424,0.00024236,7]
[342820777,1732146633934,-151.0,0.00024236,7]
[342820778,1732146633944,-151.0,0.00024236,7]
[342820779,1732146633954,-300.766486,0.00024236,7]
[342820780,1732146633963,-948.690745,0.00024236,7]
[342820781,1732146633974,-948.690745,0.00024236,7]
[342820782,1732146633984,-948.690745,0.00024236,7]
[342820783,1732146633993,-948.690745,0.00024236,7]
[342820784,1732146634002,-948.690745,0.00024236,7]
[342820785,1732146634014,-948.690745,0.00024236,7]
[342820786,1732146634024,-948.690745,0.00024236,7]
[342820787,1732146634034,-948.690745,0.00024236,7]
[342820788,1732146634044,-948.690745,0.00024236,7]
[342820789,1732146634053,-948.690745,0.00024236,7]
[342820790,1732146634062,-948.690745,0.00024236,7]
[342820791,1732146634072,-948.690745,0.00024236,7]
[342820792,1732146634081,-151.0,0.00024237,7]
[342820793,1732146634091,-151.0,0.00024237,7]
[342820794,1732146634103,-151.0,0.00024237,7]
[342820795,1732146634113,-203.06067769,0.00024237,2]
[342820796,1732146634122,-192.95919211,0.00024237,2]
[342820797,1732146634132,-232.72469914,0.00024237,2]
[342820798,1732146634142,-151.0,0.00024238,7]
[342820799,1732146634151,-10363.69,0.00024238,2]
[342820800,1732146634161,-948.690745,0.00024238,7]
[342820801,1732146634170,-948.690737,0.00024238,7]
[342820802,1732146634179,-2460.97,0.00024238,2]
[342820803,1732146634188,-190.426317,0.00024238,7]
[342820804,1732146634198,-190.426323,0.00024238,7]
[342820805,1732146634207,-500.0,0.00024238,2]
[342820806,1732146634217,-500.0,0.00024296,2]
[342820807,1732146634226,-500.0,0.00024296,2]
[342820808,1732146634236,-153.4886882,0.00024296,2]
[342820809,1732146634245,-628.09039988,0.00024296,2]
[342820810,1732146634256,-503.72245063,0.00024375,2]
[342820811,1732146634266,-163.219,0.00024375,6]
[342820812,1732146634276,-500.0,0.00024375,2]
[342820813,1732146634285,-151.0,0.00024511,7]
[342820814,1732146634294,-151.0,0.00024511,7]
[342820815,1732146634303,-170.94766,0.00024511,7]
[342820816,1732146634313,-10363.69,0.00024512,2]
[342820817,1732146634322,-2460.97,0.00024512,2]
[342820818,1732146634331,-500.0,0.00024512,2]
[342820819,1732146634342,-792.618,0.00024518,2]
[342820820,1732146634353,-258.37884534,0.00024551,2]
[342820821,1732146634362,-500.67272822,0.00024561,2]
[342820822,1732146634372,-273.24385793,0.00024561,2]
[342820823,1732146634381,-501.59412102,0.00024561,2]
[342820824,1732146634391,-168.59651576,0.00024561,2]
[342820825,1732146634405,-331.40348424,0.00024561,2]
[342820826,1732146634415,-500.0,0.00024561,2]
[342820827,1732146634424,-500.0,0.00024561,2]
[342820828,1732146634433,-311.27571453,0.00024561,2]
[342820829,1732146634445,-188.72428547,0.00024561,2]
[342820830,1732146634454,-500.0,0.00024641,2]
[342820831,1732146634464,-159.71884447,0.00024641,2]
[342820832,1732146634473,-500.0,0.00024641,2]
[342820833,1732146634483,-500.0,0.00024641,2]
[342820834,1732146634492,-500.27058541,0.00024725,2]
[342820835,1732146634501,-502.25370391,0.00024727,2]
[342820836,1732146634511,-500.0,0.00024727,2]
[342820837,1732146634521,-381.88204628,0.00024727,2]
[342820838,1732146634531,-452.50595125,0.00024727,2]
[342820839,1732146634540,-154.30184141,0.00024727,2]
[342820840,1732146634549,-4160.3427418,0.00024786,2]
[342820864,1732146638537,-324.01109506,0.0002369,2]
[342820865,1732146638547,-500.0,0.00023963,2]
[342820866,1732146638557,-500.0,0.00023963,2]
[342820867,1732146638567,-500.0,0.00023963,2]
[342820868,1732146638577,-328.07400281,0.00023963,2]
[342820869,1732146638587,-500.0,0.00023963,2]
[342820870,1732146638596,-500.0,0.00023963,2]
[342820871,1732146638608,-500.0,0.00023963,2]
[342820872,1732146638617,-500.0,0.00023963,2]
[342820873,1732146638626,-500.0,0.00023963,2]
[342820874,1732146638635,-500.0,0.00023963,2]
[342820875,1732146638645,-500.0,0.00023963,2]
[342820876,1732146638655,-500.0,0.00023963,2]
[342820877,1732146638666,-500.0,0.00023963,2]
[342820878,1732146638675,-500.0,0.00023963,2]
[342820879,1732146638685,-500.0,0.00023963,2]
[342820880,1732146638695,-500.0,0.00023963,2]
[342820882,1732146638704,-500.0,0.00023963,2]
[342820884,1732146638714,-500.0,0.00023963,2]
[342820886,1732146638724,-500.0,0.00023963,2]
[342820887,1732146638734,-500.0,0.00023963,2]
[342820888,1732146638743,-500.0,0.00023963,2]
[342820889,1732146638752,-500.0,0.00023963,2]
[342820890,1732146638762,-500.0,0.00023963,2]
[342820891,1732146638771,-500.0,0.00023963,2]
[342820892,1732146638782,-650.0,0.00023963,2]
[342820893,1732146638791,-500.0,0.00023963,2]
[342820894,1732146638801,-500.0,0.00023963,2]
[342820895,1732146638817,-500.0,0.00023963,2]
[342820896,1732146638832,-500.0,0.00023963,2]
[342820897,1732146638842,-500.0,0.00023963,2]
[342820898,1732146638856,-500.0,0.00023963,2]
[342820899,1732146638865,-500.0,0.00023963,2]
[342820900,1732146638875,-500.0,0.00023963,2]
[342820901,1732146638885,-500.0,0.00023963,2]
[342820902,1732146638894,-500.0,0.00023963,2]
[342820903,1732146638904,-500.0,0.00023963,2]
[342820904,1732146638914,-500.0,0.00023963,2]
[342820905,1732146638924,-500.0,0.00023963,2]
[342820906,1732146638936,-500.0,0.00023963,2]
[342820907,1732146638946,-500.0,0.00023963,2]
[342820908,1732146638956,-325.0,0.00023963,2]
[342820909,1732146638965,-500.0,0.00023963,2]
[342820910,1732146638975,-500.0,0.00023963,2]
[342820911,1732146638986,-500.0,0.00023963,2]
[342820912,1732146638996,-500.0,0.00023963,2]
[342820913,1732146639006,-500.0,0.00023963,2]
[342820914,1732146639017,-500.0,0.00023963,2]
[342820915,1732146639026,-500.0,0.00023963,2]
[342820916,1732146639036,-500.0,0.00023963,2]
[342820917,1732146639045,-500.0,0.00023963,2]
[342820918,1732146639055,-127.66926559,0.00023963,2]
[342820919,1732146639068,-368.44858035,0.00023963,2]
[342820920,1732146639077,-500.0,0.00023963,2]
[342820921,1732146639087,-500.0,0.00023963,2]
[342820922,1732146639096,-500.0,0.00023963,2]
[342820923,1732146639109,-500.0,0.00023963,2]
[342820924,1732146639119,-500.0,0.00023963,2]
[342820925,1732146639128,-500.0,0.00023963,2]
[342820926,1732146639138,-500.0,0.00023963,2]
[342820927,1732146639148,-500.0,0.00023963,2]
[342820928,1732146639158,-500.0,0.00023963,2]
[342820929,1732146639168,-156.48550898,0.00023963,2]
[342820939,1732146640179,-343.51449102,0.00023963,2]
[342820940,1732146640189,-21.84170738,0.00023963,2]
[342820941,1732146640201,-478.15829262,0.00023963,2]
[342820942,1732146640211,-500.0,0.00023963,2]
[342820943,1732146640221,-500.0,0.00023963,2]
[342820944,1732146640230,-500.0,0.00023963,2]
[342820945,1732146640240,-500.0,0.00023963,2]
[342820946,1732146640249,-413.73844237,0.00023963,2]
[342821020,1732147832365,-3737.11497302,0.00018,2]
[342821022,1732147832376,-2638.03356978,0.00018,2]
[342821023,1732147832388,-640.4764572,0.00018,2]
[342821025,1732147832397,-300.0,0.00019999,2]
[342821027,1732147832408,-300.0,0.00019999,2]
[342821028,1732147832417,-2365.0,0.0002,2]
[342821030,1732147832426,-99.13164546,0.0002,2]
[342821031,1732147832437,-1037.11,0.0002,2]
[342821050,1732147838422,-1226.75835454,0.0002,2]
[342821051,1732147838431,-2363.0,0.0002,2]
[342821052,1732147838441,-2363.0,0.0002,2]
[342821053,1732147838450,-555.631695,0.00021757,2]
[342821054,1732147838459,-420.0,0.00021777,2]
[342821055,1732147838468,-592.31929456,0.0002184,2]
[342821056,1732147838477,-201.0,0.00021999,2]
[342821057,1732147838487,-275.0,0.00022,2]
[342821058,1732147838497,-275.0,0.00022192,2]
[342821059,1732147838507,-324.11596473,0.00022932,2]
[342821060,1732147838516,-878.4324231,0.0002294,2]
[342821061,1732147838525,-3000.0,0.00023,2]
[342821062,1732147838534,-3000.0,0.0002301,2]
[342821063,1732147838543,-275.0,0.00023014,2]
[342821064,1732147838552,-3000.0,0.0002302,2]
[342821065,1732147838561,-3000.0,0.0002303,2]
[342821066,1732147838570,-3287.099399,0.0002304,2]
[342821067,1732147838579,-194.91755419,0.00023589,2]
[342821068,1732147838588,-501.22950175,0.0002359,2]
[342821069,1732147838597,-322.99897016,0.0002369,2]
[342821070,1732147838606,-543.38935268,0.0002369,2]
[342821071,1732147838615,-500.0,0.0002369,2]
[342821072,1732147838624,-8463.06,0.0002369,2]
[342821073,1732147838633,-500.0,0.0002369,2]
[342821074,1732147838642,-2345.95,0.0002369,2]
[342821075,1732147838651,-500.0,0.0002369,2]
[342821076,1732147838663,-500.0,0.0002369,2]
[342821077,1732147838673,-500.0,0.0002369,2]
[342821078,1732147838682,-500.0,0.0002369,2]
[342821079,1732147838691,-267.08618196,0.0002369,2]
[342821080,1732147838700,-574.0,0.00023712,2]
[342821081,1732147838710,-878.43242305,0.00023797,2]
[342821082,1732147838719,-163.22,0.00023805,5]
[342821083,1732147838729,-500.0,0.00023903,2]
[342821084,1732147838739,-500.0,0.00023964,2]
[342821085,1732147838750,-3597.76830964,0.00023964,2]
[342821141,1732147840261,-374.8200062,0.00023964,2]
[342821142,1732147840272,-1360.0001,0.00023964,2]
[342821148,1732147843459,-2428.86519463,0.00023964,2]
[342821150,1732147843471,-701.60638953,0.00023964,2]
[342821151,1732147843480,-500.0,0.00023964,2]
[342821153,1732147843490,-2345.95,0.00023964,2]
[342821154,1732147843500,-159.0,0.00024071,4]
[342821155,1732147843509,-310.70579824,0.00024079,2]
[342821156,1732147843518,-277.0,0.00024164,2]
[342821157,1732147843528,-500.0,0.00024238,2]
[342821158,1732147843537,-6228.46496936,0.00024238,2]
[342821165,1732147846294,-7498.28,0.0002369,2]
[342821166,1732147846304,-7498.28,0.00023964,2]
[342821167,1732147846314,-500.0,0.00024238,2]
[342821168,1732147846324,-2345.95,0.00024238,2]
[342821169,1732147846334,-500.0,0.00024375,2]
[342821170,1732147846344,-500.0,0.00024512,2]
[342821171,1732147846353,-430.96779295,0.00024512,2]
[342821172,1732147846363,-2345.95,0.00024512,2]
[342821173,1732147846373,-159.0,0.00024521,4]
[342821174,1732147846382,-789.23510117,0.00024622,2]
[342821175,1732147846392,-878.43242305,0.00024653,2]
[342821176,1732147846401,-500.0,0.0002466,2]
[342821177,1732147846411,-500.0,0.0002466,2]
[342821178,1732147846420,-500.0,0.0002466,2]
[342821179,1732147846430,-500.0,0.0002466,2]
[342821180,1732147846440,-545.82287766,0.0002466,2]
[342821181,1732147846451,-500.0,0.0002466,2]
[342821182,1732147846461,-500.0,0.0002466,2]
[342821183,1732147846470,-500.0,0.0002466,2]
[342821184,1732147846480,-500.0,0.0002466,2]
[342821185,1732147846490,-500.0,0.0002466,2]
[342821186,1732147846502,-500.0,0.0002466,2]
[342821187,1732147846512,-500.0,0.0002466,2]
[342821188,1732147846521,-500.0,0.0002466,2]
[342821189,1732147846531,-500.0,0.0002466,2]
[342821190,1732147846540,-500.0,0.0002466,2]
[342821191,1732147846550,-500.0,0.0002466,2]
[342821192,1732147846559,-500.0,0.0002466,2]
[342821193,1732147846569,-500.0,0.0002466,2]
[342821194,1732147846579,-500.0,0.0002466,2]
[342821195,1732147846588,-500.0,0.0002466,2]
[342821196,1732147846598,-500.0,0.0002466,2]
[342821197,1732147846607,-500.0,0.0002466,2]
[342821198,1732147846618,-500.0,0.0002466,2]
[342821199,1732147846627,-500.0,0.0002466,2]
[342821200,1732147846637,-500.0,0.0002466,2]
[342821201,1732147846646,-573.82065752,0.0002466,2]
[342821202,1732147846656,-500.0,0.0002466,2]
[342821203,1732147846669,-500.0,0.0002466,2]
[342821204,1732147846679,-500.0,0.0002466,2]
[342821205,1732147846689,-500.0,0.0002466,2]
[342821206,1732147846700,-500.0,0.0002466,2]
[342821207,1732147846710,-500.0,0.0002466,2]
[342821208,1732147846720,-500.0,0.0002466,2]
[342821209,1732147846730,-500.0,0.0002466,2]
[342821210,1732147846739,-500.0,0.0002466,2]
[342821211,1732147846751,-500.0,0.0002466,2]
[342821212,1732147846760,-500.0,0.0002466,2]
[342821213,1732147846769,-500.18857342,0.0002466,2]
[342821214,1732147846779,-500.0,0.0002466,2]
[342821215,1732147846789,-500.0,0.0002466,2]
[342821216,1732147846799,-320.10934451,0.0002466,2]
[342821217,1732147846808,-500.0,0.0002466,2]
[342821218,1732147846818,-500.0,0.0002466,2]
[342821219,1732147846827,-500.0,0.0002466,2]
[342821220,1732147846837,-500.0,0.0002466,2]
[342821221,1732147846847,-500.0,0.0002466,2]
[342821222,1732147846856,-500.0,0.0002466,2]
[342821223,1732147846866,-500.0,0.0002466,2]
[342821224,1732147846875,-500.0,0.0002466,2]
[342821225,1732147846884,-500.0,0.0002466,2]
[342821226,1732147846894,-500.0,0.00024667,2]
[342821227,1732147846904,-500.0,0.00024667,2]
[342821228,1732147846913,-321.76671606,0.00024667,2]
[342821229,1732147846922,-341.52,0.00024681,3]
[342821230,1732147846932,-532.06164922,0.00024722,2]
[342821231,1732147846941,-500.0,0.00024786,2]
[342821232,1732147846951,-2345.95,0.00024786,2]
[342821233,1732147846960,-500.0,0.00024837,2]
[342821234,1732147846970,-500.0,0.00024837,2]
[342821235,1732147846979,-159.0,0.0002497,5]
[342821236,1732147846988,-1253.58049668,0.00025,2]
[342821237,1732147846999,-303.06364003,0.00025,2]
[342821238,1732147847008,-245.92942624,0.00025059,2]
[342821239,1732147847017,-247.87100387,0.00025059,2]
[342821240,1732147847027,-283.05012297,0.00025059,2]
[342821241,1732147847036,-634.02,0.0002506,2]
[342821242,1732147847046,-2345.95,0.0002506,2]
[342821243,1732147847055,-1000.0,0.00025215,2]
[342821244,1732147847065,-1000.0,0.00025215,2]
[342821245,1732147847074,-303.06364003,0.0002525,2]
[342821246,1732147847083,-500.0,0.00025271,2]
[342821247,1732147847215,-500.0,0.00025271,2]
[342821248,1732147847225,-500.0,0.00025271,2]
[342821249,1732147847234,-310.03528991,0.00025283,2]
[342821250,1732147847245,-311.47,0.000253,2]
[342821251,1732147847254,-2345.95,0.00025334,2]
[342821252,1732147847263,-159.0,0.0002542,5]
[342821253,1732147847272,-303.06364003,0.000255,2]
[342821254,1732147847281,-878.43242305,0.0002551,2]
[342821255,1732147847291,-2345.95,0.00025608,2]
[342821256,1732147847300,-500.0,0.0002561,2]
[342821257,1732147847309,-789.23510114,0.00025665,2]
[342821258,1732147847319,-500.0,0.00025747,2]
[342821259,1732147847328,-303.06364003,0.0002575,2]
[342821260,1732147847337,-483.82712,0.00025787,15]
[342821261,1732147847346,-1000.0,0.00025819,2]
[342821262,1732147847355,-1000.0,0.00025819,2]
[342821263,1732147847365,-159.0,0.00025869,5]
[342821264,1732147847374,-2345.95,0.00025882,2]
[342821265,1732147847384,-518.23898089,0.00025884,2]
[342821266,1732147847396,-303.06364003,0.00026,2]
[342821267,1732147847407,-16037.17516228,0.000261,2]
[342821282,1732148084934,174.575827,0.00013973,2]
[342821287,1732148798064,174.575827,0.00013973,2]
[342821293,1732148895602,401.3125963,0.000123,2]
[342821294,1732148897606,9262.65498184,0.000125,2]
[342821296,1732148911613,273.83552548,0.0001,2]
[342821299,1732148918558,20068.80100461,0.0001,2]
[342821303,1732148921788,1000.0,0.0001,2]
[342821338,1732149032589,-2632.88887826,0.00018,2]
[342821339,1732149032600,-722.59937,0.00018,2]
[342821356,1732149038510,-3660.13675174,0.00018,2]
[342821357,1732149038520,-253.6749095,0.00022178,2]
[342821358,1732149038530,-234.56565632,0.00022706,2]
[342821359,1732149038542,-43.25019068,0.00022706,2]
[342821360,1732149038551,-871.9524424,0.00022958,2]
[342821361,1732149038562,-300.0,0.00023124,2]
[342821362,1732149038572,-300.0,0.00023124,2]
[342821363,1732149038581,-1839.91749547,0.00023125,2]
[342821364,1732149039002,-864.68131979,0.00023125,2]
[342821378,1732149040505,-844.95118474,0.00023125,2]
[342821379,1732149040515,-500.0,0.00023125,2]
[342821380,1732149040524,-16896.2768905,0.00023126,2]
[342821381,1732149040534,-6873.43,0.00023212,2]
[342821382,1732149040543,-514.72377601,0.00023399,2]
[342821383,1732149040553,-3549.55,0.00023399,2]
[342821384,1732149040563,-500.0,0.00023399,2]
[342821385,1732149040573,-6873.43,0.00023486,2]
[342821386,1732149040583,-3549.55,0.00023673,2]
[342821387,1732149040592,-500.0,0.00023673,2]
[342821388,1732149040602,-6873.43,0.0002376,2]
[342821389,1732149040612,-163.22,0.0002381,5]
[342821390,1732149040621,-3549.55,0.00023947,2]
[342821391,1732149040631,-500.0,0.00023947,2]
[342821392,1732149040641,-550.000001,0.00024,2]
[342821393,1732149040651,-6873.43,0.00024034,2]
[342821394,1732149040660,-154.293298,0.00024219,2]
[342821395,1732149040670,-153.0000001,0.00024219,2]
[342821396,1732149040679,-3549.55,0.00024221,2]
[342821397,1732149040689,-500.0,0.00024221,2]
[342821398,1732149040698,-6873.43,0.00024308,2]
[342821399,1732149040708,-500.0,0.00024375,2]
[342821400,1732149040718,-891.81943623,0.00024481,2]
[342821401,1732149040727,-3549.55,0.00024495,2]
[342821402,1732149040736,-500.0,0.00024495,2]
[342821403,1732149040749,-217.95548085,0.0002458,2]
[342821404,1732149040759,-607.91677817,0.0002458,2]
[342821405,1732149040769,-500.0,0.0002458,2]
[342821406,1732149040779,-500.5298223,0.0002458,2]
[342821407,1732149040788,-500.0,0.0002458,2]
[342821408,1732149040798,-500.0,0.0002458,2]
[342821409,1732149040807,-500.0,0.0002458,2]
[342821410,1732149040818,-500.0,0.0002458,2]
[342821411,1732149040828,-500.0,0.0002458,2]
[342821412,1732149040837,-435.60168093,0.0002458,2]
[342821413,1732149040847,-500.0,0.0002458,2]
[342821414,1732149040856,-500.0,0.0002458,2]
[342821415,1732149040865,-500.0,0.0002458,2]
[342821416,1732149040875,-500.0,0.0002458,2]
[342821417,1732149040884,-446.70275261,0.0002458,2]
[342821418,1732149040895,-500.0,0.0002458,2]
[342821419,1732149040904,-382.07601436,0.0002458,2]
[342821420,1732149040914,-500.0,0.0002458,2]
[342821421,1732149040924,-500.0,0.0002458,2]
[342821422,1732149040934,-177.26184746,0.0002458,2]
[342821423,1732149040944,-500.0,0.0002458,2]
[342821424,1732149040953,-500.0,0.0002458,2]
[342821425,1732149040962,-288.11682058,0.0002458,2]
[342821426,1732149040972,-500.0,0.0002458,2]
[342821427,1732149040981,-500.0,0.0002458,2]
[342821428,1732149040990,-500.0,0.0002458,2]
[342821429,1732149041002,-500.0,0.0002458,2]
[342821430,1732149041012,-500.0,0.0002458,2]
[342821431,1732149041023,-500.0,0.0002458,2]
[342821432,1732149041033,-500.0,0.0002458,2]
[342821433,1732149041043,-500.0,0.0002458,2]
[342821434,1732149041054,-500.0,0.0002458,2]
[342821435,1732149041063,-500.0,0.0002458,2]
[342821436,1732149041073,-500.0,0.0002458,2]
[342821437,1732149041083,-500.0,0.0002458,2]
[342821438,1732149041095,-500.0,0.0002458,2]
[342821439,1732149041106,-500.0,0.0002458,2]
[342821440,1732149041116,-6873.43,0.00024582,2]
[342821441,1732149041126,-3549.55,0.00024769,2]
[342821442,1732149041135,-500.0,0.00024769,2]
[342821443,1732149041145,-6873.43,0.00024856,2]
[342821444,1732149041154,-424.8326851,0.00024904,2]
[342821445,1732149041164,-436.6377441,0.00024904,2]
[342821446,1732149041173,-408.630783,0.00024904,2]
[342821447,1732149041183,-304.267258,0.00024904,2]
[342821448,1732149041192,-3549.55,0.00025043,2]
[342821449,1732149041201,-523.0,0.00025043,2]
[342821450,1732149041210,-6873.43,0.0002513,2]
[342821451,1732149041222,-153.0,0.00025178,2]
[342821452,1732149041234,-153.0,0.00025178,2]
[342821453,1732149041246,-153.0,0.00025178,2]
[342821454,1732149041257,-3549.55,0.00025316,2]
[342821455,1732149041266,-6873.43,0.00025404,2]
[342821456,1732149041275,-151.0,0.00025472,7]
[342821457,1732149041284,-151.0,0.00025472,7]
[342821458,1732149041293,-157.5392007,0.00025511,2]
[342821459,1732149041306,-306.316,0.00025511,2]
[342821476,1732149043619,-500.0,0.0002458,2]
[342821477,1732149043628,-427.9642355,0.00025511,2]
[342821478,1732149043638,-3549.55,0.0002559,2]
[342821479,1732149043648,-280.32,0.000256,2]
[342821480,1732149043658,-1861.58100933,0.00025678,2]
[342821549,1732150232655,-7015.625,0.00018,2]
[342821551,1732150232665,-7248.16776835,0.00020985,2]
[342821558,1732150232724,-5764.09225655,0.00020985,2]
[342821560,1732150232734,-192.3336099,0.00021065,2]
[342821562,1732150232743,-417.0529984,0.00021351,2]
[342821564,1732150232753,-277.815848,0.00021766,2]
[342821566,1732150232762,-161.513634,0.00021826,2]
[342821568,1732150232772,-465.93175667,0.00022045,2]
[342821570,1732150232782,-51.02427707,0.00022144,2]
[342821572,1732150232793,-448.97572293,0.00022144,2]
[342821574,1732150232803,-500.0,0.00022144,2]
[342821576,1732150232812,-500.0,0.00022144,2]
[342821578,1732150232821,-6.74071331,0.00022144,2]
[342821583,1732150232863,-493.25928669,0.00022144,2]
[342821585,1732150232872,-500.0,0.00022144,2]
[342821587,1732150232881,-562.09506332,0.00022145,2]
[342821589,1732150232890,-500.0,0.00022145,2]
[342821591,1732150232899,-500.0,0.00022145,2]
[342821593,1732150232908,-354.09754681,0.00022145,2]
[342821624,1732150240578,-500.0,0.00022144,2]
[342821625,1732150240588,-500.0,0.00022144,2]
[342821627,1732150240597,-145.90245319,0.00022145,2]
[342821628,1732150240606,-500.0,0.00022145,2]
[342821630,1732150240615,-500.0,0.00022145,2]
[342821631,1732150240624,-384.24797991,0.00022145,2]
[342821632,1732150240634,-115.75202009,0.00022145,2]
[342821633,1732150240644,-500.0,0.00022145,2]
[342821634,1732150240653,-509.05646884,0.00022145,2]
[342821635,1732150240663,-500.49241111,0.00022145,2]
[342821636,1732150240672,-142.69879996,0.00022145,2]
[342821637,1732150240683,-357.30120004,0.00022145,2]
[342821638,1732150240693,-500.0,0.00022145,2]